[Event "Slovakia Open 2022"]
[Site "Bratislava"]
[Date "2022.09.30"]
[Round "1.14"]
[White "Kukan, Michal"]
[Black "Kukelko, Alexey"]
[Result "0-1"]
[ECO "D48"]
[WhiteElo "1767"]
[BlackElo "2280"]
[Annotator "TA"]
[PlyCount "53"]
[EventDate "2022.09.30"]
[EventCountry "SVK"]
[SourceTitle "playchess.com"]
[Source "ChessBase"]
[SourceQuality "1"]
[TimeControl "2700+10"]

{[%evp 17,53,26,28,0,0,-4,-25,-8,-8,-33,-25,-41,-44,-51,-49,-91,-32,-67,-30,-145,-125,-271,-166,-189,-157,-158,-146,-138,-135,-216,-212,-264,-235,-838,-803,-755,-792,-29986]} 1. c4 {[%emt 0:00:10]} e6 {[%emt 0:00:07]} 2. Nc3 {[%emt 0:00:05]} d5 {[%emt 0:00:07]} 3. d4 {[%emt 0:00:04]} c6 {[%emt 0:00:03]} 4. e3 {[%emt 0:00:19]} Nf6 {[%emt 0:00:03]} 5. Nf3 {[%emt 0:00:04]} Nbd7 {[%emt 0:00:02]} 6. Be2 {[%emt 0:00:08]} dxc4 {[%emt 0:00:08]} 7. Bxc4 {[%emt 0:00:03]} b5 {[%emt 0:00:11]} 8. Bd3 {[%emt 0:00:08]} Bb7 {[%emt 0:00:00]} 9. O-O {[%emt 0:00:06]} a6 {[%emt 0:00:00]} 10. Ne4 {[%emt 0:00:15] D48: Semi-Slav: Meran System: 7...b5 8 Bd3 a6.} (10. e4 $5 {[%cal Re4e5]}) 10... c5 {[%emt 0:01:17]} 11. Nxf6+ {[%emt 0:00:57]} Qxf6 {[%emt 0:00:28]} 12. Be2 {[%emt 0:00:44] [#] Black has an edge.} Bd6 $146 {[%emt 0:01:54]} ({Predecessor:} 12... Be7 13. Bd2 O-O 14. Rc1 Rac8 15. dxc5 Nxc5 16. Bc3 Qg6 17. b4 Rfd8 18. Qc2 Be4 {0-1 (35) Monteiro,A (1725)-Da Silva,T (2045) Sao Paulo 2015}) 13. Bd2 {[%emt 0:02:06]} O-O {[%emt 0:00:53]} 14. dxc5 {[%emt 0:00:18]} Nxc5 {[%emt 0:01:45]} 15. Bc3 {[%emt 0:00:22]} e5 {[%emt 0:00:03]} 16. Nd2 {[%emt 0:03:38]} Na4 {[%emt 0:00:16]} (16... Qg6 $17 {[%csl Gb7][%cal Rg6g2]} 17. g3 Rad8) 17. Rc1 {[%emt 0:00:57]} Rac8 {[%emt 0:00:47]} 18. Nb1 {[%emt 0:02:21]} (18. Bf3 $11 {keeps the balance.} Bxf3 19. Nxf3) 18... Rfd8 {[%emt 0:00:47][%cal Od6a3]} 19. Ba5 {[%emt 0:00:52] This move loses the game for White.} (19. Qc2 $17) 19... Bc7 {[%emt 0:03:32]} 20. Qe1 {[%emt 0:01:23] [#]} Qg6 $1 $40 {[%emt 0:01:01][%csl Gb7][%cal Rg6g2][%mdl 128] White is in trouble.} 21. f3 {[%emt 0:00:53]} Bb6 {[%emt 0:00:31] Black is much more active. The white rooks are badly placed.} 22. Bxb6 {[%emt 0:04:28]} Qxb6 {[%emt 0:00:02]} ({Stronger than} 22... Nxb6 23. Rxc8 Rxc8 24. Qd2 $15) 23. Qf2 {[%emt 0:03:07]} (23. Kf2 $17) 23... Nxb2 $19 {[%emt 0:00:17]} 24. f4 {[%emt 0:00:49]} e4 {[%emt 0:01:26]} 25. Bg4 $2 {[%emt 0:01:35] [#]} (25. Rxc8 Rxc8 26. Bg4) 25... Rxc1 {[%emt 0:00:34]} 26. Rxc1 {[%emt 0:06:22]} Nd3 {[%emt 0:00:04][%csl LRc1,LRf2]} 27. Qf1 {[%emt 0:00:20] Weighted Error Value: White=0.78/Black=0.22 (precise)} 0-1

[Event "Slovakia Open 2022"]
[Site "Bratislava"]
[Date "2022.09.30"]
[Round "1.15"]
[White "Nestorenko, Dmitry"]
[Black "Tomcikova, Zuzana"]
[Result "1-0"]
[ECO "B10"]
[WhiteElo "2168"]
[BlackElo "1796"]
[Annotator "TA"]
[PlyCount "56"]
[EventDate "2022.09.30"]
[EventCountry "SVK"]
[SourceTitle "playchess.com"]
[Source "ChessBase"]
[SourceQuality "1"]
[TimeControl "2700+10"]

{[%evp 13,56,-10,-2,4,12,5,58,0,0,0,0,-2,-14,-14,-18,-9,-9,0,56,57,103,69,96,66,97,81,90,92,104,75,172,113,167,171,310,274,283,249,333,323,285,216,1028,972,1072]} 1. e4 {[%emt 0:00:05]} c6 {[%emt 0:00:07]} 2. c4 {[%emt 0:00:02]} d5 {[%emt 0:00:11]} 3. cxd5 {[%emt 0:00:02]} cxd5 {[%emt 0:00:03]} 4. exd5 {[%emt 0:00:01]} Nf6 {[%emt 0:00:10]} 5. Qa4+ {[%emt 0:00:02]} Nbd7 {[%emt 0:02:39]} 6. Nc3 {[%emt 0:00:03]} g6 {[%emt 0:01:17]} 7. Bc4 {[%emt 0:00:04]} Bg7 {[%emt 0:00:59]} 8. Nf3 {[%emt 0:00:14] B10: Caro-Kann: 2 d3 and 2 c4.} O-O {[%emt 0:00:19]} 9. d3 {[%emt 0:00:03]} Nc5 {[%emt 0:10:37]} (9... Nb6 $11 10. Qb3 Bg4) 10. Qc2 {[%emt 0:02:56]} (10. Qa3 $1 $14 b6 11. O-O) 10... b6 $11 {[%emt 0:02:09]} 11. O-O {[%emt 0:03:47]} Bb7 {[%emt 0:01:49][%cal Rf6d5] [#]} 12. Bg5 $146 {[%emt 0:03:49]} ({Predecessor:} 12. d4 Na6 13. Qe2 Nc7 14. Bg5 Ncxd5 15. Rfe1 Nxc3 16. bxc3 Rc8 17. Ba6 Bxa6 18. Qxa6 {1-0 (53) Nivala,T (2215)-Vinke,D (2156) Finland 2015}) 12... Na6 {[%emt 0:07:05]} 13. Qb3 {[%emt 0:04:40]} Nc7 $1 {[%emt 0:01:19][%cal Rf6d5]} 14. Bxf6 {[%emt 0:00:49]} Bxf6 {[%emt 0:00:11]} 15. d4 {[%emt 0:00:02]} Rc8 {[%emt 0:04:42]} (15... b5 $11) 16. Ne5 $14 {[%emt 0:02:37]} Ne8 {[%emt 0:05:50]} (16... b5 $14) 17. Bd3 {[%emt 0:06:12]} Nd6 {[%emt 0:01:11]} 18. a4 {[%emt 0:01:13]} a6 {[%emt 0:05:37]} 19. Rad1 {[%emt 0:00:33]} Bg7 {[%emt 0:00:20]} 20. Rfe1 {[%emt 0:00:14]} Re8 {[%emt 0:00:51]} 21. f4 {[%emt 0:00:12] White has more active pieces.} (21. h4 {seems wilder.} e6 22. h5 gxh5 23. Re3) 21... f6 {[%emt 0:00:15]} (21... b5 $16 {was called for.}) 22. Nf3 {[%emt 0:00:16] Pair of Knights!} ({White should try} 22. Nc6 $18 Qd7 23. Ne4 (23. Qxb6 Bxc6 24. dxc6 Rxc6 $16)) 22... Kf8 {[%emt 0:00:18]} (22... Kh8 $16 {was necessary.}) 23. h4 {[%emt 0:00:26][%cal Bh2h4,Bh4h5][%mdl 32]} Kf7 {[%emt 0:00:44]} (23... Kg8 $142 24. h5 gxh5) 24. h5 $18 {[%emt 0:01:20]} Bh6 {[%emt 0:00:04]} 25. g3 {[%emt 0:00:31]} Rg8 {[%emt 0:00:05]} 26. hxg6+ {[%emt 0:00:14]} hxg6 {[%emt 0:00:02]} 27. Kf2 {[%emt 0:00:11]} Nf5 $2 {[%emt 0:00:12] [#]} (27... Rh8 28. Re6 Bf8) 28. d6+ {[%emt 0:00:48]} Kf8 {[%emt 0:00:25] Weighted Error Value: White=0.20 (precise) /Black=0.37} 1-0

[Event "Slovakia Open 2022"]
[Site "Bratislava"]
[Date "2022.09.30"]
[Round "1.16"]
[White "Slivka, Vasil"]
[Black "Slovak, Kilian"]
[Result "0-1"]
[ECO "E92"]
[WhiteElo "1569"]
[BlackElo "2278"]
[Annotator "TA"]
[PlyCount "36"]
[EventDate "2022.09.30"]
[EventCountry "SVK"]
[SourceTitle "playchess.com"]
[Source "ChessBase"]
[SourceQuality "1"]
[TimeControl "2700+10"]

{[%evp 19,36,-18,1,-55,-69,-72,-64,-55,-25,-58,-52,-87,-85,-87,-52,-82,-66,-504,-487]} 1. d4 {[%emt 0:00:10]} Nf6 {[%emt 0:00:07]} 2. c4 {[%emt 0:00:02]} g6 {[%emt 0:00:02]} 3. Nc3 {[%emt 0:00:03]} Bg7 {[%emt 0:00:06]} 4. e4 {[%emt 0:00:04]} O-O {[%emt 0:00:06]} 5. Nf3 {[%emt 0:00:06]} d6 {[%emt 0:00:03]} 6. Be2 {[%emt 0:00:18]} e5 {[%emt 0:00:07]} 7. dxe5 {[%emt 0:00:17]} dxe5 {[%emt 0:00:03]} 8. Qxd8 {[%emt 0:00:04]} Rxd8 {[%emt 0:00:03]} 9. Bg5 {[%emt 0:00:32]} c6 {[%emt 0:00:02]} 10. O-O {[%emt 0:00:15]} Re8 {[%emt 0:01:15]} 11. Bxf6 {[%emt 0:00:18] E92: King's Indian: Classical: 6 Be2 e5: 7 dxe5, 7 Be3 and Petrosian System without 7...Nbd7.} (11. Rfd1 $11) 11... Bxf6 $15 {[%emt 0:00:03]} 12. Rad1 {[%emt 0:00:13]} Na6 {[%emt 0:00:39][%cal Bb8a6,Ba6b4,Bb4c2,Bc2d4,Bd4e2][%mdl 32] [#]} 13. Na4 $146 {[%emt 0:01:46] Black is slightly better.} ({Predecessor:} 13. a3 Nc7 14. b4 Ne6 15. Bd3 a5 16. b5 Nc5 17. Bc2 {0-1 (41) Fesalbon,R (2061)-Latorre,M (2284) Khanty-Mansiysk 2010}) 13... Nb4 {[%emt 0:06:59]} 14. Nc3 {[%emt 0:03:34]} Nc2 {[%emt 0:02:37]} 15. h3 {[%emt 0:03:02]} Nd4 {[%emt 0:00:26]} 16. Rfe1 {[%emt 0:04:01]} Be6 {[%emt 0:02:38]} 17. b3 {[%emt 0:00:45]} Rad8 {[%emt 0:00:10] Black is more active.} 18. Na4 $2 {[%emt 0:02:15][%mdl 8192] [#]} (18. Nxd4 $15 exd4 19. Na4) 18... Nxe2+ {[%emt 0:00:45] Weighted Error Value: White=1.00/Black=0.16 (very precise)} 0-1

[Event "Slovakia Open 2022"]
[Site "Bratislava"]
[Date "2022.09.30"]
[Round "1.17"]
[White "Pasti, Aron"]
[Black "Babula, Matej"]
[Result "1-0"]
[ECO "B40"]
[WhiteElo "2350"]
[BlackElo "1864"]
[Annotator "TA"]
[PlyCount "47"]
[EventDate "2022.09.30"]
[EventCountry "SVK"]
[SourceTitle "playchess.com"]
[Source "ChessBase"]
[SourceQuality "1"]
[TimeControl "2700+10"]

{[%evp 9,47,0,7,0,0,0,0,0,2,0,5,0,7,5,31,32,60,75,82,64,240,233,229,245,300,308,880,859,910,906,898,859,1002,703,990,588,1826,1775,29991,29983]} 1. e4 {[%emt 0:00:09]} c5 {[%emt 0:00:07]} 2. Nf3 {[%emt 0:00:02]} e6 {[%emt 0:00:05]} 3. c4 {[%emt 0:00:32]} Nc6 {[%emt 0:00:46]} 4. Nc3 {[%emt 0:00:02]} e5 {[%emt 0:00:23]} 5. g3 {[%emt 0:00:36]} g6 {[%emt 0:01:11]} 6. d3 {[%emt 0:01:04] B40: Sicilian: 2...e6, Unusual lines.} Bg7 {[%emt 0:01:15]} 7. Bg2 {[%emt 0:00:19]} Nge7 {[%emt 0:00:44]} 8. O-O {[%emt 0:00:55] The position is equal.} O-O {[%emt 0:00:19]} 9. Ne1 {[%emt 0:00:02]} d6 {[%emt 0:02:22]} 10. Nc2 {[%emt 0:00:23]} Nd4 {[%emt 0:03:21] [#]} 11. Rb1 $146 {[%emt 0:01:13]} ({Predecessor:} 11. Nxd4 cxd4 12. Nd5 Nxd5 13. exd5 Re8 14. Bd2 a5 15. a3 Bf5 16. Qc2 a4 17. b4 axb3 18. Qxb3 {½-½ (36) Sax,G (2545)-Almasi,Z (2672) Sibenik 2006}) 11... f5 {[%emt 0:01:57]} 12. exf5 {[%emt 0:02:03]} gxf5 {[%emt 0:02:10]} 13. b4 {[%emt 0:00:33] Threatens to win with bxc5.} f4 {[%emt 0:05:57]} 14. Be4 {[%emt 0:03:41]} f3 $2 {[%emt 0:03:47] [#] A mistake that costs the game.} ({Better is} 14... Nxc2 $14 15. Qxc2 cxb4 16. Rxb4 Qd7) 15. bxc5 $1 $18 {[%emt 0:04:15]} dxc5 {[%emt 0:00:27]} 16. Nxd4 {[%emt 0:00:02]} (16. Bxb7 Bxb7 17. Rxb7 Nxc2 18. Rxe7 (18. Qxc2 $2 Qc8 $19) 18... Qxe7 $17) 16... exd4 {[%emt 0:01:17]} 17. Nd5 {[%emt 0:00:06]} Bg4 $2 {[%emt 0:03:41]} (17... Nxd5 18. Bxd5+ Kh8) 18. Bg5 {[%emt 0:00:33]} Qe8 {[%emt 0:09:07]} 19. Bxe7 {[%emt 0:02:11]} Qh5 {[%emt 0:03:06]} 20. h4 {[%emt 0:00:02]} Bh3 {[%emt 0:02:17]} 21. Qc1 {[%emt 0:07:15]} Bh6 {[%emt 0:01:10]} 22. Bg5 {[%emt 0:00:16][%cal Be7g5,Bg5h6,Bh6f8][%mdl 32]} Bxf1 {[%emt 0:01:24]} 23. Bxh6 {[%emt 0:00:17]} Be2 {[%emt 0:00:50]} 24. Bxf8 {[%emt 0:00:05] Weighted Error Value: White=0.67/Black=0.80} 1-0

[Event "Slovakia Open 2022"]
[Site "Bratislava"]
[Date "2022.09.30"]
[Round "1.18"]
[White "Migalko, Dmitriy"]
[Black "Kostolansky, Sebastian Lukas"]
[Result "0-1"]
[ECO "B22"]
[WhiteElo "1528"]
[BlackElo "2398"]
[Annotator "TA"]
[PlyCount "34"]
[EventDate "2022.09.30"]
[EventCountry "SVK"]
[SourceTitle "playchess.com"]
[Source "ChessBase"]
[SourceQuality "1"]
[TimeControl "2700+10"]

{[%evp 13,34,17,26,28,25,31,31,1,0,0,3,-15,45,54,58,-66,-62,-260,-260,-630,-631,-966,-936]} 1. e4 {[%emt 0:00:51][%cal Be2e4,Be4e5][%mdl 32]} c5 {[%emt 0:00:06]} 2. c3 {[%emt 0:00:04][%cal Bc2c3,Bc3d4,Bd4e5][%mdl 32]} Nf6 {[%emt 0:03:19]} 3. e5 {[%emt 0:00:32]} Nd5 {[%emt 0:00:02]} 4. d4 {[%emt 0:00:06]} cxd4 {[%emt 0:00:26]} 5. cxd4 {[%emt 0:00:21]} d6 {[%emt 0:02:06]} 6. Nf3 {[%emt 0:01:30]} e6 {[%emt 0:02:00][%cal Be7e6,Be6d5,Bd5d4][%mdl 32]} 7. Bc4 {[%emt 0:00:56]} dxe5 {[%emt 0:01:05]} 8. dxe5 {[%emt 0:00:18] B22: Sicilian: 2 c3.} Be7 $1 {[%emt 0:00:03][%mdl 4] Prevents Bg5. is recently more successful than 8...Bb4+.} 9. O-O {[%emt 0:00:43]} O-O {[%emt 0:00:02]} 10. Bxd5 {[%emt 0:00:16] White is slightly better.} exd5 {[%emt 0:00:09]} 11. Nc3 {[%emt 0:00:03]} Be6 {[%emt 0:00:16][%cal Bc8e6,Be6d7,Bd7b5][%mdl 32] [#]} 12. Qb3 $146 {[%emt 0:01:29]} ({Predecessor:} 12. Qd3 Nc6 13. Rd1 Qa5 14. Nxd5 Bxd5 15. Qxd5 Rfd8 16. Qb3 Rxd1+ 17. Qxd1 Nxe5 18. Bf4 {½-½ (25) Kralevski,A (2125)-Nedev,T (2475) Struga 2015}) 12... Nd7 {[%emt 0:16:29]} (12... Qd7 $11 13. Ne2 Nc6) 13. Qxb7 $14 {[%emt 0:04:00]} Nc5 {[%emt 0:05:46]} 14. Qb5 {[%emt 0:03:08]} (14. Qb4 $14) 14... d4 $1 $36 {[%emt 0:00:38][%mdl 2048] White is under pressure.} 15. Rd1 $2 {[%emt 0:03:03]} (15. Nb1 $1 $15) 15... Bd7 $19 {[%emt 0:01:09] This bishop pair is nice.} 16. Nxd4 {[%emt 0:02:49]} (16. Qc4 dxc3 17. Qxc3) 16... Bxb5 {[%emt 0:00:03]} 17. Ne6 {[%emt 0:00:27] [#]} Qxd1+ $3 {[%emt 0:00:30] Weighted Error Value: White=1.52/Black=0.09 (flawless)} 0-1

[Event "Slovakia Open 2022"]
[Site "Bratislava"]
[Date "2022.09.30"]
[Round "1.19"]
[White "Novosadova, Kristyna"]
[Black "Pasti, Zsombor"]
[Result "1-0"]
[ECO "C99"]
[WhiteElo "2151"]
[BlackElo "1884"]
[Annotator "TA"]
[PlyCount "126"]
[EventDate "2022.09.30"]
[EventCountry "SVK"]
[SourceTitle "playchess.com"]
[Source "ChessBase"]
[SourceQuality "1"]
[TimeControl "2700+10"]

{[%evp 24,126,36,43,46,55,89,45,103,102,106,105,114,61,83,77,171,57,120,116,115,111,126,114,143,132,153,93,110,107,115,110,110,104,113,103,110,89,121,125,141,131,137,138,133,110,115,111,147,137,175,169,174,174,164,152,202,209,197,202,184,100,121,81,170,99,99,77,77,72,72,72,234,233,269,260,354,166,873,880,847,827,857,894,817,397,375,345,29974,29975,29972,29974,29973,29975,29968,29971,29963,29965,29962,29963,29984,29985,29984,29985,29985]} 1. e4 {[%emt 0:00:07]} e5 {[%emt 0:00:01]} 2. Nf3 {[%emt 0:00:06]} Nc6 {[%emt 0:00:01]} 3. Bb5 {[%emt 0:00:02]} a6 {[%emt 0:00:02]} 4. Ba4 {[%emt 0:00:01]} Nf6 {[%emt 0:00:01]} 5. O-O {[%emt 0:00:03]} Be7 {[%emt 0:00:02]} 6. Re1 {[%emt 0:00:01]} b5 {[%emt 0:00:02]} 7. Bb3 {[%emt 0:00:01]} d6 {[%emt 0:00:01]} 8. c3 {[%emt 0:00:03]} O-O {[%emt 0:00:04]} 9. h3 {[%emt 0:00:01]} Na5 {[%emt 0:00:02]} 10. Bc2 {[%emt 0:00:01]} c5 {[%emt 0:00:01]} 11. d4 {[%emt 0:00:02]} Qc7 {[%emt 0:00:02]} 12. Nbd2 {[%emt 0:00:18][%cal Bb1d2,Bd2f1,Bf1g3,Bg3h5][%mdl 32]} cxd4 {[%emt 0:00:04]} 13. cxd4 {[%emt 0:00:02]} Nd7 {[%emt 0:00:03] C99: Closed Ruy Lopez: Chigorin Defence: 11 d4 Qc7 12 Nbd2 cxd4.} 14. Nf1 {[%emt 0:00:29] [#]} Rd8 $146 {[%emt 0:00:07]} ({Predecessor:} 14... Nc4 15. b3 Na5 16. Ne3 Nb6 17. Nd5 Nxd5 18. exd5 exd4 19. Bb2 Bb7 20. Qxd4 f6 {1-0 (31) Varekha,A (1656)-Ojog,F (1719) Kishinev 2019}) 15. Ng3 {[%emt 0:00:22]} Nb6 {[%emt 0:00:10]} (15... g6 $14) 16. b3 $16 {[%emt 0:00:45]} Nc6 {[%emt 0:00:08]} 17. Bb2 {[%emt 0:00:23][%cal Bc1b2,Bb2c3,Bc3a5][%mdl 32]} Bf6 {[%emt 0:00:11]} 18. d5 {[%emt 0:01:45]} (18. Rc1 $16) 18... Ne7 {[%emt 0:00:24]} 19. Nh5 {[%emt 0:00:24]} Ng6 {[%emt 0:00:21]} (19... Nd7 $16 {might work better.}) 20. Rc1 {[%emt 0:01:01]} (20. Nxf6+ $18 gxf6 21. Rc1) 20... Qe7 {[%emt 0:00:26]} (20... Be7 $14) 21. Bc3 {[%emt 0:01:15]} Bd7 {[%emt 0:01:01]} 22. Ba5 {[%emt 0:00:29]} Rdb8 {[%emt 0:00:25]} 23. Qd2 {[%emt 0:00:31]} Be8 {[%emt 0:00:16]} 24. Bd3 {[%emt 0:01:39]} Nd7 {[%emt 0:00:27]} 25. Rc7 {[%emt 0:00:19]} (25. Bc7 $142) 25... Rc8 {[%emt 0:00:38]} 26. Rec1 {[%emt 0:00:14] White has more active pieces.} Rxc7 {[%emt 0:00:10]} 27. Rxc7 {[%emt 0:00:03] Hoping for Qc2.} Qf8 {[%emt 0:00:04]} 28. Nxf6+ {[%emt 0:00:21]} Nxf6 {[%emt 0:00:06]} 29. g3 {[%emt 0:00:55]} Bd7 {[%emt 0:00:03]} 30. Kg2 {[%emt 0:00:20]} Rc8 {[%emt 0:00:02]} 31. Qc3 $36 {[%emt 0:02:13][%mdl 2048] White has strong initiative.} Rxc7 {[%emt 0:00:39]} 32. Qxc7 {[%emt 0:00:08]} ({Don't do} 32. Bxc7 Qc8 $14) 32... Qc8 {[%emt 0:00:09]} 33. Qxc8+ {[%emt 0:01:47]} Bxc8 {[%emt 0:00:01]} 34. Bb4 {[%emt 0:00:08] This bishop pair is nice.} Ne8 {[%emt 0:00:08]} 35. a4 {[%emt 0:00:12]} bxa4 {[%emt 0:00:11]} 36. bxa4 {[%emt 0:00:01]} Kf8 {[%emt 0:00:01]} 37. Nd2 {[%emt 0:00:04]} Ke7 {[%emt 0:00:55]} 38. Nc4 {[%emt 0:00:10]} f6 {[%emt 0:00:38]} 39. Be2 {[%emt 0:01:52]} Nf8 {[%emt 0:00:10]} (39... Nh8 $16 {keeps fighting.} 40. Bd3 Nf7) 40. f4 $18 {[%emt 0:00:22]} Nd7 {[%emt 0:00:05]} 41. Bg4 {[%emt 0:00:56]} Bb7 {[%emt 0:00:06]} 42. Kf3 {[%emt 0:02:19]} (42. Kf2 $18) 42... g6 {[%emt 0:00:05][%cal Of6f5]} 43. fxe5 {[%emt 0:02:32]} f5 {[%emt 0:01:07] [#]} (43... Nxe5+ $16 44. Nxe5 fxe5) 44. exd6+ {[%emt 0:03:13]} (44. Ke3 $1 $18 fxg4 45. hxg4) 44... Kd8 $16 {[%emt 0:02:32]} 45. Kf4 {[%emt 0:00:33]} ({Stronger than} 45. exf5 Bxd5+ 46. Ke3 Bxc4 47. fxg6 hxg6 $17) 45... fxg4 {[%emt 0:00:06]} 46. hxg4 {[%emt 0:00:02] And now g5 would win.} Nef6 {[%emt 0:00:15]} 47. g5 {[%emt 0:02:31][%mdl 1024] White has strong compensation.} Nh5+ {[%emt 0:01:03] [#] Loses the game.} (47... Nxd5+ $16 48. exd5 Bxd5) 48. Kf3 $18 {[%emt 0:00:02]} Ng7 {[%emt 0:00:40]} 49. Bc3 {[%emt 0:03:19]} Ne8 {[%emt 0:02:25]} 50. Bd4 {[%emt 0:00:44]} (50. a5 $142 Bc8 51. Kf4) 50... Nf8 $2 {[%emt 0:00:28]} (50... a5 51. Nxa5 Nxd6) 51. a5 {[%emt 0:00:55]} Nd7 {[%emt 0:00:52]} 52. Ke3 {[%emt 0:00:21]} Ba8 {[%emt 0:00:53]} 53. Bh8 {[%emt 0:01:18]} Nc5 {[%emt 0:01:20]} 54. Kd4 {[%emt 0:00:07]} (54. Bf6+ $142 Kd7 55. Nb6+ Kxd6 56. e5+ Kc7 57. Nxa8+ Kb7 58. Nb6) 54... Nb3+ {[%emt 0:00:39]} 55. Ke5 {[%emt 0:00:04]} Bb7 $2 {[%emt 0:00:02]} (55... Nc5 $18 56. Kd4 Nb3+ 57. Ke3 Nxd6 58. Nxd6 Nxa5) 56. Bf6+ {[%emt 0:00:40] White mates.} Nxf6 {[%emt 0:00:17]} 57. gxf6 {[%emt 0:00:02]} Ke8 {[%emt 0:00:02]} 58. Nb6 {[%emt 0:00:52]} Nc5 {[%emt 0:01:43]} 59. Kd4 {[%emt 0:00:39]} Nb3+ {[%emt 0:00:01]} 60. Kc4 {[%emt 0:02:55]} Nxa5+ {[%emt 0:00:03]} 61. Kb4 {[%emt 0:00:09]} Nc6+ {[%emt 0:00:21]} 62. dxc6 {[%emt 0:00:15]} Bxc6 {[%emt 0:00:03]} 63. Kc5 {[%emt 0:00:27]} Bb5 {[%emt 0:00:03] Weighted Error Value: White=0.29 (precise) /Black=0.39} 1-0

[Event "Slovakia Open 2022"]
[Site "Bratislava"]
[Date "2022.09.30"]
[Round "1.20"]
[White "Park, Seonjae"]
[Black "Rakhmangulova, Anastasiya"]
[Result "0-1"]
[ECO "E92"]
[WhiteElo "1704"]
[BlackElo "2244"]
[Annotator "TA"]
[PlyCount "64"]
[EventDate "2022.09.30"]
[EventCountry "SVK"]
[SourceTitle "playchess.com"]
[Source "ChessBase"]
[SourceQuality "1"]
[TimeControl "2700+10"]

{[%evp 18,64,37,9,55,56,130,120,122,91,99,99,86,94,130,32,45,0,-21,-41,67,27,45,36,38,48,50,0,29,-47,0,-12,0,-83,-84,-89,-77,-89,-72,-87,-91,-383,-380,-602,-588,-985,-960,-1296,-1275]} 1. d4 {[%emt 0:00:06]} Nf6 {[%emt 0:00:02]} 2. c4 {[%emt 0:00:09]} g6 {[%emt 0:00:02]} 3. Nc3 {[%emt 0:00:06]} Bg7 {[%emt 0:00:01]} 4. e4 {[%emt 0:00:10]} d6 {[%emt 0:00:02]} 5. Be2 {[%emt 0:00:10]} O-O {[%emt 0:00:03]} 6. Nf3 {[%emt 0:00:06]} e5 {[%emt 0:00:05]} 7. Be3 {[%emt 0:00:06]} exd4 {[%emt 0:01:36]} 8. Nxd4 {[%emt 0:00:08]} Re8 {[%emt 0:00:02]} 9. f3 {[%emt 0:00:14]} c6 {[%emt 0:00:02]} 10. Bf2 {[%emt 0:01:02]} Nh5 {[%emt 0:01:28] E92: King's Indian: Classical: 6 Be2 e5: 7 dxe5, 7 Be3 and Petrosian System without 7...Nbd7.} (10... d5 $11) 11. Qd2 $14 {[%emt 0:01:43] [#]} a5 $146 {[%emt 0:03:18]} (11... Be5 $14) ({Predecessor:} 11... Na6 12. O-O Nc5 13. Rad1 Be5 14. g3 Nf6 15. Nb3 Nxb3 16. axb3 Be6 17. Rfe1 Qa5 18. Bf1 {0-1 (34) Suvorov,A (2353)-Yoo,C (2455) Chess.com INT 2021}) 12. g4 {[%emt 0:01:26]} Nf6 {[%emt 0:00:04] White is better.} 13. h4 {[%emt 0:01:50]} h5 {[%emt 0:00:45]} 14. gxh5 {[%emt 0:08:41]} Nxh5 {[%emt 0:00:03]} 15. O-O-O {[%emt 0:00:25] Hoping for f4.} Na6 {[%emt 0:04:15][%cal Bb8a6,Ba6c5,Bc5e6][%mdl 32]} 16. Rdg1 {[%emt 0:02:28]} (16. f4 $16) 16... Nc5 {[%emt 0:01:45] [#]} 17. Be3 {[%emt 0:01:38]} (17. Nf5 $1 $14 Be5 18. Be3) 17... a4 $11 {[%emt 0:02:02]} 18. Nc2 {[%emt 0:03:36]} Qa5 {[%emt 0:02:20]} (18... Be5 $15) 19. Bd4 {[%emt 0:03:44]} ({But not} 19. Qxd6 Ne6 $15) 19... Ne6 {[%emt 0:01:27]} 20. Bxg7 {[%emt 0:01:17]} Kxg7 {[%emt 0:00:10]} 21. Bd1 {[%emt 0:02:23]} Qe5 {[%emt 0:02:18]} 22. Ne2 {[%emt 0:03:22] Against Qf4} (22. a3 $14) 22... Bd7 {[%emt 0:02:28][%cal Od6d5,Bc8d7,Bd7c6,Bc6b5][%mdl 32] Active counter play!} 23. Qc3 {[%emt 0:01:28]} (23. a3 $11) 23... b5 {[%emt 0:00:57]} (23... Rh8 {is interesting.} 24. Qd2 Nef4 25. Nxf4 Nxf4 26. a3 Nh3) 24. cxb5 {[%emt 0:01:53]} cxb5 {[%emt 0:00:08]} 25. Qxe5+ {[%emt 0:00:02]} (25. Kb1 $11 {keeps the balance.}) 25... dxe5 $17 {[%emt 0:00:02]} 26. Kb1 {[%emt 0:01:10]} Rec8 {[%emt 0:00:33]} 27. Ne3 {[%emt 0:01:05]} Bc6 {[%emt 0:02:57]} 28. Bc2 {[%emt 0:00:40]} b4 {[%emt 0:01:08]} 29. Rc1 $2 {[%emt 0:01:45][%mdl 8192] Loses the game.} (29. b3 $17 {was necessary.}) 29... Bb5 $19 {[%emt 0:00:16]} 30. Ng1 {[%emt 0:00:55]} (30. Rh2 $142 Bxe2 31. Rxe2) 30... Nd4 {[%emt 0:00:20] [#] ...b3 is the strong threat. Black is clearly winning.} 31. Rh2 {[%emt 0:00:02]} b3 {[%emt 0:00:06]} 32. axb3 {[%emt 0:00:51]} axb3 {[%emt 0:00:02] Weighted Error Value: White=0.91/Black=0.23 (precise)} 0-1